fUSD/lending_fUSD_20240506
["ID","MTS","AMOUNT","RATE_DAILY","PERIOD"]
[326504539,1715028642575,-150.0,0.00022756,2]
[326504540,1715028642584,-150.0,0.00022774,2]
[326504541,1715028642594,-150.0,0.00022775,2]
[326504542,1715028642604,-150.0,0.00022777,2]
[326504543,1715028642613,-150.0,0.00022777,2]
[326504544,1715028642622,-200.0,0.00022781,2]
[326504545,1715028642632,-1000.0,0.00022781,2]
[326504546,1715028642641,-500.0,0.00022781,2]
[326504547,1715028642650,-200.0,0.00022781,2]
[326504548,1715028642660,-576.0,0.00022785,2]
[326504549,1715028642669,-150.0,0.0002279,2]
[326504550,1715028642679,-150.0,0.00022802,2]
[326504551,1715028642688,-150.0,0.00022813,2]
[326504552,1715028642697,-200.0,0.00022815,2]
[326504553,1715028642707,-500.0,0.00022815,2]
[326504554,1715028642718,-200.0,0.00022815,2]
[326504555,1715028642728,-210.64,0.00022818,2]
[326504556,1715028642738,-150.0,0.00022825,2]
[326504557,1715028642747,-150.0,0.00022842,2]
[326504558,1715028642757,-150.0,0.00022847,2]
[326504559,1715028642766,-150.0,0.0002285,2]
[326504560,1715028642776,-150.0,0.0002286,2]
[326504561,1715028642786,-150.0,0.00022862,2]
[326504562,1715028642796,-150.0,0.00022863,2]
[326504563,1715028642806,-188.35857762,0.00022865,2]
[326504564,1715028642815,-158.85601642,0.00022867,2]
[326504565,1715028642825,-298.50071904,0.00022875,2]
[326504566,1715028642834,-152.0,0.0002288,3]
[326504567,1715028642844,-150.0,0.00022884,2]
[326504568,1715028642853,-892.6248819,0.00022884,2]
[326504569,1715028642863,-150.0,0.00022887,2]
[326504570,1715028642872,-16165.18798257,0.000229,2]
[326504571,1715028642887,-7612.2253517,0.000229,2]
[326504572,1715028642899,-834.30178552,0.000229,2]
[326504573,1715028643122,-25381.84000674,0.000229,2]
[326504574,1715028643134,-1331.0004,0.000229,2]
[326504575,1715028643159,-1493.324995,0.000229,2]
[326504576,1715028643172,-1407.69235615,0.000229,2]
[326504577,1715028643184,-2145.76887824,0.000229,2]
[326504578,1715028643195,-4556.08170398,0.000229,2]
[326504579,1715028643207,-3072.5765401,0.000229,2]
[326504580,1715028643217,-1349.75413638,0.000229,2]
[326504581,1715028643229,-7179.549607,0.000229,2]
[326504582,1715028643238,-150.0,0.00022905,2]
[326504583,1715028643247,-5433.07,0.0002291,2]
[326504584,1715028643257,-150.0,0.00022914,2]
[326504585,1715028643268,-150.0,0.00022923,2]
[326504586,1715028643279,-150.0,0.00022929,2]
[326504587,1715028643289,-150.0,0.00022939,2]
[326504588,1715028643298,-150.0,0.00022943,2]
[326504589,1715028643310,-150.0,0.00022947,2]
[326504590,1715028643319,-150.0,0.00022947,2]
[326504591,1715028643329,-150.0,0.00022952,2]
[326504592,1715028643338,-150.0,0.00022955,2]
[326504593,1715028643349,-150.0,0.00022967,2]
[326504594,1715028643359,-150.0,0.0002297,2]
[326504595,1715028643368,-4485.89550055,0.00022973,2]
[326504596,1715028643378,-150.0,0.00022979,2]
[326504597,1715028643388,-150.0,0.00022982,2]
[326504598,1715028643397,-150.0,0.00022992,2]
[326504599,1715028643407,-377.18870267,0.00022994,2]
[326504600,1715028643416,-236.70245155,0.00022994,2]
[326504601,1715028643425,-155.8405235,0.00022994,2]
[326504602,1715028643434,-155.0,0.00022994,2]
[326504603,1715028643444,-239.39039,0.00022994,2]
[326504604,1715028643453,-158.60255969,0.00022994,2]
[326504605,1715028643462,-3079.97215406,0.00022995,2]
[326504606,1715028643471,-150.0,0.00022995,2]
[326504607,1715028643480,-155.96751744,0.00022998,2]
[326504608,1715028643489,-5263.47383781,0.00022998,2]
[326504609,1715028643499,-155.0,0.00022998,2]
[326504610,1715028643508,-1254.8591015,0.00022998,2]
[326504611,1715028643517,-155.54880344,0.00022998,2]
[326504612,1715028643527,-347.06747875,0.00022998,2]
[326504613,1715028643536,-678.64129001,0.00022998,2]
[326504614,1715028643547,-150.0,0.00022998,2]
[326504615,1715028643559,-513.0661015,0.00022999,2]
[326504616,1715028643570,-436.41358989,0.00023,2]
[326504617,1715028643581,-7244.67942924,0.00023,2]
[326504618,1715028643593,-3337.5717888,0.00023,2]
[326504619,1715028643604,-438.91764752,0.00023,2]
[326504620,1715028643615,-3932.22550401,0.00023,2]
[326504621,1715028643628,-746.89027862,0.00023,2]
[326504622,1715028643640,-1563.28000397,0.00023,2]
[326504623,1715028643650,-484.0,0.00023,6]
[326504624,1715028643659,-342.0,0.00023,2]
[326504625,1715028643668,-1000.0,0.00023,2]
[326504626,1715028643678,-1000.0,0.00023,2]
[326504627,1715028643688,-373.97,0.00023,2]
[326504628,1715028643697,-213.64,0.00023,2]
[326504629,1715028643707,-427.3,0.00023,2]
[326504630,1715028643716,-150.0,0.00023,3]
[326504631,1715028643726,-153.63646033,0.00023004,2]
[326504632,1715028643736,-473.969412,0.00023055,2]
[326504633,1715028643745,-1008.6041237,0.00023055,2]
[326504634,1715028643757,-439.726636,0.00023055,2]
[326504635,1715028643766,-500.612914,0.00023055,2]
[326504636,1715028643777,-1637.09935816,0.00023055,2]
[326504637,1715028643789,-7710.3929299,0.00023055,2]
[326504638,1715028643800,-15119.08210004,0.00023055,2]
[326504639,1715028643810,-188.35857762,0.00023071,2]
[326504640,1715028643819,-212.0,0.0002308,2]
[326504641,1715028643829,-209.47,0.00023087,2]
[326504642,1715028643838,-2228.3343216,0.00023096,2]
[326504643,1715028643847,-1457.42692138,0.00023096,2]
[326504644,1715028643857,-156.509704,0.00023097,2]
[326504645,1715028643866,-195.495548,0.00023097,2]
[326504646,1715028643876,-412.72733,0.00023097,2]
[326504647,1715028643886,-211.917223,0.00023097,2]
[326504648,1715028643896,-854.415374,0.00023097,2]
[326504649,1715028643905,-230.410382,0.00023097,2]
[326504650,1715028643915,-3238.852944,0.00023097,2]
[326504651,1715028643925,-188.35857762,0.00023104,2]
[326504652,1715028643935,-153.63646033,0.0002311,2]
[326504653,1715028643944,-227.23371763,0.00023128,7]
[326504654,1715028643954,-298.50071904,0.00023176,2]
[326504655,1715028643963,-298.50071904,0.00023178,2]
[326504656,1715028643973,-2601.18658437,0.00023181,2]
[326504657,1715028643982,-608.79334473,0.00023181,2]
[326504658,1715028644602,-508.93150566,0.00023181,2]
[326504659,1715028644612,-166.20737002,0.00023181,2]
[326504660,1715028644624,-445.14400164,0.00023181,2]
[326504661,1715028644636,-513.297077,0.00023181,2]
[326504662,1715028644645,-1131.79608704,0.00023181,2]
[326504663,1715028644655,-866.62,0.00023205,2]
[326504664,1715028644664,-455.32003095,0.00023208,2]
[326504665,1715028644674,-8529.30374336,0.00023275,2]
[326504666,1715028644683,-310.4537847,0.0002329,2]
[326504667,1715028644692,-188.35857762,0.00023319,2]
[326504668,1715028644701,-157.35873203,0.00023348,2]
[326504669,1715028644710,-1151.86238397,0.00023348,2]
[326504670,1715028644719,-6176.95297151,0.00023362,2]
[326504671,1715028644728,-352.37084187,0.00023362,2]
[326504672,1715028644738,-3635.55068162,0.00023362,2]
[326504673,1715028644760,-892.6248819,0.00023371,2]
[326504674,1715028644776,-1679.95546352,0.00023385,2]
[326504675,1715028644793,-195.495548,0.00023385,2]
[326504676,1715028644803,-412.72733,0.00023385,2]
[326504677,1715028644814,-854.415374,0.00023385,2]
[326504678,1715028644824,-3101.47285515,0.00023385,2]
[326504679,1715028644836,-137.38008885,0.00023385,2]
[326504680,1715028644845,-156.29007043,0.00023397,2]
[326504681,1715028644855,-2001.32534763,0.000234,2]
[326504682,1715028644864,-188.35857762,0.00023453,2]
[326504683,1715028644875,-1198.49439253,0.00023457,2]
[326504684,1715028644884,-150.0,0.00023474,2]
[326504685,1715028644894,-10000.0,0.0002349,2]
[326504686,1715028644903,-151.94101798,0.00023498,2]
[326504687,1715028644912,-150.0,0.000235,3]
[326504688,1715028644921,-150.0,0.00023512,2]
[326504689,1715028644931,-212.0,0.0002359,2]
[326504690,1715028644941,-154.90002815,0.00023603,2]
[326504691,1715028644950,-1817.55819367,0.0002365,2]
[326504692,1715028644962,-479.77795545,0.0002365,2]
[326504693,1715028647025,-9643.570866,0.00021488,2]
[326504694,1715028647038,-631.44603776,0.00021488,2]
[326504695,1715028647050,-173.59777008,0.00022125,2]
[326504696,1715028647061,-150.0,0.00023335,2]
[326504697,1715028647070,-150.0,0.00023338,2]
[326504698,1715028647079,-150.0,0.00023351,2]
[326504699,1715028647089,-21.45570236,0.00023384,2]
[326504700,1715028647184,-128.54429764,0.00023384,2]
[326504701,1715028647194,-150.0,0.00023387,2]
[326504702,1715028647203,-90.04716067,0.00023425,2]
[326504703,1715028648238,-643.99576,0.00021488,5]
[326504707,1715028821780,151.0,0.00023539,120]
[326504708,1715028995865,1098.34921333,0.00012956,2]
[326504709,1715029074174,304.95664217,0.00012954,2]
[326504710,1715029432297,203.30442812,0.00012941,2]
[326504711,1715029438523,203.3044281,0.00012949,2]
[326504712,1715029446766,203.3044281,0.00012957,2]
[326504715,1715029641908,158.74333394,0.00012935,2]
[326504747,1715029832899,-470.69758781,0.00013026,2]
[326504751,1715029832911,-799.86837674,0.00013026,2]
[326504754,1715029832920,-572.27447341,0.00013027,7]
[326504756,1715029832929,-1554.38411007,0.00013033,2]
[326504759,1715029832940,-407.44106543,0.00013033,2]
[326504761,1715029832951,-731.32,0.00013033,2]
[326504818,1715029840802,-2268.25408316,0.00013033,2]
[326504820,1715029840813,-14505.10397368,0.00013033,2]
[326504821,1715029840823,-394.45706301,0.000137,2]
[326504823,1715029840832,-431.36447893,0.00014999,2]
[326504825,1715029840841,-1753.26193151,0.00015,2]
[326504827,1715029840852,-3246.73806849,0.00015,2]
[326504829,1715029840862,-209.24031346,0.000154,2]
[326504831,1715029840873,-71.42205448,0.00016293,2]
[326504833,1715029840884,-80.5189635,0.00016293,2]
[326504835,1715029840893,-153.12904301,0.00016459,2]
[326504837,1715029840903,-2526.12,0.00016459,2]
[326504838,1715029840912,-1225.44903621,0.000165,2]
[326504840,1715029840922,-153.12904301,0.00016577,2]
[326504842,1715029840931,-446.05,0.00016679,2]
[326504844,1715029840940,-159.20038349,0.00017117,2]
[326504846,1715029840949,-166.95067801,0.00017216,2]
[326504848,1715029840958,-153.12904301,0.00017273,2]
[326504850,1715029840968,-16.78093145,0.00017347,2]
[326504852,1715029840979,-135.54497916,0.00017347,2]
[326504854,1715029840989,-166.95067801,0.00017517,2]
[326504855,1715029841006,-153.12904301,0.00017581,2]
[326504857,1715029841015,-166.95067801,0.00017606,2]
[326504859,1715029841025,-12055.99,0.00017728,2]
[326504861,1715029841034,-168.75834071,0.00017763,2]
[326504863,1715029841043,-166.95067801,0.00017773,2]
[326504865,1715029841052,-152.32591061,0.00017874,2]
[326504866,1715029841062,-153.12904301,0.00017887,2]
[326504868,1715029841071,-160.05,0.00017964,2]
[326504870,1715029841080,-1250.0,0.00018,3]
[326504872,1715029841089,-158.85601642,0.00018005,2]
[326504874,1715029841100,-170.55,0.00018031,2]
[326504876,1715029841109,-3518.78906188,0.00018053,2]
[326504878,1715029841122,-4316.5918931,0.00018053,2]
[326504880,1715029841133,-6797.29904502,0.00018053,2]
[326504882,1715029841142,-500.0,0.00018079,2]
[326504884,1715029841152,-152.32591061,0.00018087,2]
[326504885,1715029841161,-200.0,0.00018094,2]
[326504886,1715029841170,-684.66674708,0.00018101,2]
[326504887,1715029841181,-857.96325292,0.00018101,2]
[326504888,1715029841190,-700.06,0.00018108,2]
[326504889,1715029841199,-210.64,0.00018108,2]
[326504890,1715029841209,-441.10469184,0.00018161,2]
[326504891,1715029841218,-150.0,0.00018174,2]
[326504892,1715029841227,-166.95067801,0.00018201,2]
[326504893,1715029841236,-2751.0,0.00018211,2]
[326504894,1715029841245,-166.95067801,0.00018544,2]
[326504895,1715029841254,-159.20038349,0.00018672,2]
[326504896,1715029841263,-166.95067801,0.00018732,2]
[326504897,1715029841273,-154.00063388,0.00018827,2]
[326504898,1715029841282,-166.95067801,0.0001883,2]
[326504899,1715029841291,-160.41,0.00018863,2]
[326504900,1715029841300,-176.43,0.00018863,2]
[326504901,1715029841310,-159.20038349,0.0001887,2]
[326504902,1715029841319,-236.6898477,0.00018982,2]
[326504903,1715029841328,-426.55,0.0001899,2]
[326504904,1715029841338,-153.64836051,0.00019032,2]
[326504905,1715029841347,-166.95067801,0.00019088,2]
[326504907,1715029841357,-156.95,0.00019178,2]
[326504909,1715029841372,-3533.0,0.000192,2]
[326504911,1715029841381,-166.95067801,0.00019311,2]
[326504913,1715029841393,-166.95067801,0.00019315,2]
[326504915,1715029841402,-159.38033491,0.00019443,2]
[326504917,1715029841411,-153.79263489,0.00019464,2]
[326504919,1715029841420,-300.0,0.00019467,2]
[326504921,1715029841430,-892.23,0.00019477,2]
[326504923,1715029841440,-153.12904301,0.00019478,2]
[326504925,1715029841449,-166.66666665,0.00019588,2]
[326504927,1715029841458,-158.85601642,0.00019689,2]
[326504929,1715029841467,-156.29007043,0.00019705,2]
[326504931,1715029841477,-159.20038349,0.00019807,2]
[326504933,1715029841487,-159.20038349,0.00019834,2]
[326504935,1715029841509,-153.79263489,0.00019838,2]
[326504937,1715029841519,-170.527,0.00019849,2]
[326504939,1715029841529,-159.20038349,0.00019925,2]
[326504941,1715029841538,-159.20038349,0.00019961,2]
[326504943,1715029841548,-1300.0,0.0002,3]
[326504945,1715029841557,-153.12904301,0.00020098,2]
[326504947,1715029841566,-159.38033491,0.00020146,2]
[326504949,1715029841576,-159.38033491,0.00020171,2]
[326504951,1715029841585,-159.38033491,0.00020258,2]
[326504953,1715029841594,-159.38033491,0.00020331,2]
[326504955,1715029841604,-153.12904301,0.00020426,2]
[326504957,1715029841613,-152.53229489,0.00020442,2]
[326504959,1715029841624,-155.0,0.000205,2]
[326504961,1715029841633,-232.42,0.00020546,2]
[326504963,1715029841644,-159.20038349,0.00020616,2]
[326504965,1715029841654,-159.20038349,0.00020675,2]
[326504967,1715029841663,-155.73519123,0.00020692,2]
[326504969,1715029841672,-166.95067801,0.00020722,2]
[326504971,1715029841684,-159.38033491,0.00020759,2]
[326504973,1715029841693,-166.95067801,0.00020796,2]
[326504975,1715029841702,-300.0,0.00020837,2]
[326504977,1715029841712,-159.20038349,0.00020864,2]
[326504979,1715029841724,-155.0,0.000209,2]
[326504981,1715029841733,-155.51385051,0.00020966,2]
[326504983,1715029841742,-716.44946922,0.00021,2]
[326504985,1715029841751,-166.95067801,0.00021004,2]
[326504987,1715029841760,-151.94101798,0.00021083,2]
[326504989,1715029841769,-153.12904301,0.00021103,2]
[326504991,1715029841779,-153.12904301,0.00021151,2]
[326504993,1715029841788,-166.95067801,0.00021238,2]
[326504995,1715029841798,-153.64836051,0.00021266,2]
[326504997,1715029841807,-553.68213634,0.00021271,2]
[326504999,1715029841817,-353.50613739,0.00021335,2]
[326505001,1715029841826,-426.55,0.00021364,2]
[326505003,1715029841835,-2964.07578895,0.00021387,7]
[326505005,1715029841844,-154.00063388,0.00021403,2]
[326505007,1715029841854,-166.95067801,0.00021426,2]
[326505009,1715029841863,-159.38033491,0.00021474,2]
[326505011,1715029841874,-157.58243192,0.00021486,2]
[326505013,1715029841883,-200.0,0.00021486,2]
[326505015,1715029841892,-186.29892019,0.00021486,2]
[326505017,1715029841901,-192.79364736,0.00021486,2]
[326505019,1715029841911,-6227.01127323,0.00021487,2]
[326505021,1715029841922,-257.03149954,0.00021487,2]
[326505023,1715029841936,-3778.17215234,0.00021488,5]
[326505071,1715029842492,-634.79416,0.00021488,5]
[326505076,1715029843681,-18297.21508412,0.00021488,5]
[326505077,1715029843695,-156.29007043,0.00021641,2]
[326505086,1715029843884,-166.95067801,0.00021665,2]
[326505087,1715029843949,-158.85601642,0.00021667,2]
[326505088,1715029843959,-166.95067801,0.00021684,2]
[326505089,1715029843968,-153.12904301,0.00021776,2]
[326505090,1715029843978,-158.85601642,0.00021809,2]
[326505091,1715029843987,-159.20038349,0.00021838,2]
[326505092,1715029843997,-166.95067801,0.00021866,2]
[326505093,1715029844006,-159.38033491,0.00021882,2]
[326505094,1715029844015,-6757.61638509,0.000219,2]
[326505095,1715029844024,-818.84120297,0.000219,2]
[326505096,1715029844034,-2014.75245949,0.00021917,2]
[326505097,1715029844043,-818.1755,0.00021918,2]
[326505098,1715029844053,-250.0,0.00021918,2]
[326505099,1715029844062,-2000.0,0.00021918,3]
[326505100,1715029844071,-250.0,0.00021918,2]
[326505101,1715029844080,-2000.0,0.00021918,2]
[326505102,1715029844089,-201.28483837,0.00021918,2]
[326505103,1715029844100,-1499.75387415,0.00021918,2]
[326505104,1715029844111,-941.12150874,0.00021918,2]
[326505105,1715029844121,-156.79452353,0.00021956,2]
[326505106,1715029844131,-786.0242669,0.00022,2]
[326505107,1715029844141,-1350.0,0.00022,3]
[326505108,1715029844150,-160.41,0.00022007,2]
[326505109,1715029844159,-2500.0,0.00022013,2]
[326505110,1715029844169,-462.0,0.00022018,2]
[326505111,1715029844185,-972.603,0.00022018,2]
[326505112,1715029844200,-1396.0,0.00022018,2]
[326505113,1715029844209,-2299.0,0.00022018,2]
[326505114,1715029844218,-438.0,0.00022018,2]
[326505115,1715029844229,-238.0,0.00022018,2]
[326505116,1715029844240,-1935.0,0.00022018,2]
[326505117,1715029844250,-610.0,0.00022018,2]
[326505118,1715029844260,-808.0,0.00022018,2]
[326505119,1715029844269,-244.268,0.00022018,2]
[326505120,1715029844279,-299.259,0.00022018,2]
[326505121,1715029844293,-2448.0,0.00022018,2]
[326505122,1715029844310,-421.0,0.00022018,2]
[326505123,1715029844363,-1476.0,0.00022018,2]
[326505124,1715029844379,-1642.0,0.00022018,2]
[326505125,1715029844389,-204.382,0.00022018,2]
[326505126,1715029844399,-1129.0,0.00022018,2]
[326505127,1715029844409,-443.0,0.00022018,2]
[326505129,1715029844418,-223.0,0.00022018,2]
[326505130,1715029844428,-3132.0,0.00022018,2]
[326505132,1715029844438,-154.00063388,0.00022081,2]
[326505134,1715029844448,-166.95067801,0.00022101,2]
[326505135,1715029844457,-37738.0,0.00022114,2]
[326505137,1715029844467,-5736.0,0.00022114,2]
[326505139,1715029844476,-2291.0,0.00022114,2]
[326505141,1715029844488,-5899.0,0.00022114,2]
[326505143,1715029844498,-1054.0,0.00022114,2]
[326505145,1715029844508,-177.98406732,0.00022146,2]
[326505147,1715029844517,-150.0,0.00022316,2]
[326505149,1715029844527,-166.95067801,0.00022384,2]
[326505151,1715029844537,-159.20038349,0.00022388,2]
[326505153,1715029844547,-153.12904301,0.00022392,2]
[326505155,1715029844557,-1499.75387409,0.00022485,2]
[326505157,1715029844566,-941.12150871,0.00022485,2]
[326505159,1715029844576,-159.20038349,0.00022492,2]
[326505161,1715029844585,-159.20038349,0.00022515,2]
[326505163,1715029844596,-166.95067801,0.00022578,2]
[326505165,1715029844606,-150.0,0.00022631,2]
[326505167,1715029844616,-150.0,0.00022796,2]
[326505169,1715029844626,-150.0,0.00022867,2]
[326505171,1715029844636,-414.63,0.00022867,2]
[326505173,1715029844650,-166.95067801,0.00022894,2]
[326505174,1715029844659,-1000.0,0.00022968,2]
[326505176,1715029844669,-166.32939386,0.0002297,2]
[326505178,1715029844678,-167.67,0.00022972,2]
[326505180,1715029844690,-17699.97824205,0.00023,2]
[326505182,1715029844700,-156.29007043,0.00023006,2]
[326505184,1715029844709,-150.0,0.00023033,2]
[326505186,1715029844720,-1499.75387409,0.00023052,2]
[326505188,1715029844729,-941.12150871,0.00023052,2]
[326505189,1715029844739,-1065.32758869,0.00023068,2]
[326505191,1715029844748,-1136.4292867,0.00023068,2]
[326505193,1715029844757,-2601.18658437,0.00023068,2]
[326505195,1715029844776,-150.0,0.00023095,2]
[326505197,1715029844792,-519.0,0.00023117,2]
[326505199,1715029844801,-150.0,0.00023143,2]
[326505201,1715029844811,-152.32591061,0.00023147,2]
[326505203,1715029844821,-157.050706,0.00023148,2]
[326505205,1715029844830,-150.0,0.00023171,2]
[326505207,1715029844839,-1000.0,0.000232,2]
[326505209,1715029844849,-225.0,0.000232,2]
[326505211,1715029844859,-352.0,0.000232,2]
[326505213,1715029844868,-150.0,0.00023201,2]
[326505215,1715029844878,-150.0,0.00023211,2]
[326505217,1715029844888,-150.0,0.00023226,2]
[326505219,1715029844898,-155.73519124,0.00023244,2]
[326505221,1715029844908,-150.0,0.00023246,2]
[326505223,1715029844917,-166.68129131,0.00023283,2]
[326505224,1715029844926,-150.0,0.00023288,2]
[326505226,1715029844935,-150.0,0.00023329,2]
[326505228,1715029844944,-150.0,0.00023336,2]
[326505230,1715029844953,-150.0,0.00023336,2]
[326505232,1715029844963,-150.0,0.00023338,2]
[326505234,1715029844972,-1261.14951651,0.00023344,2]
[326505236,1715029844982,-150.0,0.00023348,2]
[326505238,1715029844991,-150.0,0.00023349,2]
[326505240,1715029845000,-150.0,0.0002335,2]
[326505242,1715029845009,-150.0,0.00023353,2]
[326505244,1715029845019,-150.0,0.00023355,2]
[326505246,1715029845028,-150.0,0.00023359,2]
[326505248,1715029845037,-150.0,0.00023359,2]
[326505250,1715029845046,-150.0,0.00023368,2]
[326505252,1715029845055,-150.0,0.00023371,2]
[326505254,1715029845066,-150.0,0.00023373,2]
[326505256,1715029845075,-150.0,0.00023374,2]
[326505258,1715029845084,-150.0,0.00023375,2]
[326505260,1715029845093,-150.0,0.00023379,2]
[326505262,1715029845103,-150.0,0.00023381,2]
[326505264,1715029845112,-150.0,0.00023397,2]
[326505265,1715029845121,-150.0,0.00023398,2]
[326505267,1715029845130,-2001.32534763,0.000234,2]
[326505269,1715029845140,-8425.7937,0.000234,2]
[326505271,1715029845149,-150.0,0.00023403,2]
[326505273,1715029845159,-150.0,0.00023406,2]
[326505275,1715029845168,-150.0,0.00023407,2]
[326505278,1715029845193,-150.0,0.00023407,2]
[326505279,1715029845232,-150.0,0.00023409,2]
[326505281,1715029845243,-150.0,0.0002341,2]
[326505283,1715029845253,-3000.0,0.0002341,2]
[326505285,1715029845263,-165.42191587,0.00023413,2]
[326505287,1715029845272,-150.0,0.00023414,2]
[326505289,1715029845282,-150.0,0.00023414,2]
[326505291,1715029845292,-150.0,0.00023418,2]
[326505293,1715029845301,-150.0,0.00023421,2]
[326505295,1715029845311,-150.0,0.00023422,2]
[326505297,1715029845320,-150.0,0.00023422,2]
[326505299,1715029845330,-59.95283933,0.00023425,2]
[326505301,1715029845339,-150.0,0.00023425,2]
[326505303,1715029845349,-150.0,0.00023425,2]
[326505305,1715029845358,-150.0,0.00023432,2]
[326505307,1715029845368,-150.0,0.00023435,2]
[326505309,1715029845379,-150.0,0.00023436,2]
[326505311,1715029845388,-150.0,0.0002344,2]
[326505313,1715029845398,-150.0,0.00023443,2]
[326505315,1715029845408,-150.0,0.00023447,2]
[326505317,1715029845418,-157.050706,0.00023448,2]
[326505319,1715029845431,-150.0,0.0002345,2]
[326505321,1715029845440,-150.0,0.00023459,2]
[326505323,1715029845450,-150.0,0.0002346,2]
[326505325,1715029845459,-150.0,0.0002346,2]
[326505327,1715029845469,-150.0,0.00023462,2]
[326505329,1715029845478,-150.0,0.00023464,2]
[326505331,1715029845489,-150.0,0.00023466,2]
[326505333,1715029845505,-150.0,0.00023468,2]
[326505334,1715029845514,-150.0,0.00023476,2]
[326505335,1715029845524,-150.0,0.00023477,2]
[326505336,1715029845533,-150.0,0.0002348,2]
[326505337,1715029845543,-150.0,0.00023486,2]
[326505338,1715029845552,-1560.03868352,0.00023486,2]
[326505339,1715029845562,-150.0,0.00023487,2]
[326505340,1715029845571,-150.0,0.00023492,2]
[326505341,1715029845581,-150.0,0.00023492,2]
[326505342,1715029845593,-150.0,0.00023496,2]
[326505343,1715029845605,-11930.907865,0.000235,2]
[326505344,1715029845615,-150.0,0.00023501,2]
[326505345,1715029845625,-150.0,0.00023518,2]
[326505346,1715029845634,-150.0,0.00023518,2]
[326505347,1715029845648,-150.0,0.00023522,2]
[326505348,1715029845657,-150.0,0.00023524,2]
[326505349,1715029845666,-150.0,0.00023525,2]
[326505350,1715029845676,-150.0,0.00023528,2]
[326505351,1715029845685,-150.0,0.00023531,2]
[326505352,1715029845695,-150.0,0.00023535,2]
[326505353,1715029845705,-150.0,0.00023536,2]
[326505354,1715029845714,-293.54017198,0.00023539,2]
[326505355,1715029845724,-37419.29873334,0.00023539,2]
[326505356,1715029845733,-2214.0691653,0.00023539,2]
[326505357,1715029845743,-1037.51160232,0.00023539,2]
[326505358,1715029845752,-150.0,0.00023541,2]
[326505360,1715029845761,-150.0,0.00023544,2]
[326505362,1715029845770,-150.0,0.00023548,2]
[326505364,1715029845779,-150.0,0.00023551,2]
[326505366,1715029845789,-150.0,0.00023559,2]
[326505368,1715029845798,-150.0,0.0002356,2]
[326505370,1715029845807,-150.0,0.0002356,2]
[326505372,1715029845817,-150.0,0.0002356,2]
[326505374,1715029845826,-150.0,0.00023561,2]
[326505376,1715029845835,-388.79811563,0.00023564,2]
[326505378,1715029845843,-150.0,0.00023574,2]
[326505380,1715029845853,-1000.0,0.00023574,2]
[326505382,1715029845862,-3432.35491956,0.00023575,2]
[326505384,1715029845871,-150.0,0.00023576,2]
[326505386,1715029845882,-150.0,0.00023578,2]
[326505388,1715029845891,-150.0,0.00023578,2]
[326505390,1715029845900,-150.0,0.0002358,2]
[326505392,1715029845909,-150.0,0.00023588,2]
[326505394,1715029845919,-150.0,0.00023589,2]
[326505396,1715029845928,-484.0,0.000236,6]
[326505398,1715029845938,-342.0,0.000236,2]
[326505400,1715029845947,-150.0,0.000236,2]
[326505402,1715029845956,-150.0,0.00023615,2]
[326505404,1715029845964,-150.0,0.00023618,2]
[326505406,1715029845975,-150.0,0.00023619,2]
[326505408,1715029845984,-1499.75387409,0.0002362,2]
[326505410,1715029845993,-941.12150871,0.0002362,2]
[326505412,1715029846023,-150.0,0.00023625,2]
[326505414,1715029846037,-150.0,0.0002363,2]
[326505416,1715029846054,-150.0,0.00023636,2]
[326505419,1715029846067,-166.95067801,0.00023637,2]